Workbook

Sheet паспорт11,7
A1: ПАТ "УКРТРАНСГАЗ" | G1: ПАСПОРТ ФІЗИКО-ХІМІЧНИХ ПОКАЗНИКІВ ПРИРОДНОГО ГАЗУ № 11
A2: Філія "УМГ "Київтрансгаз" | G2: переданого Красилівським ЛВУМГ та прийнятого ПАТ "Хмельницькгаз" та прямими споживачами: АГНКС ПП АвтоГаз Красилів, АГНКС -1 Хмельницький,АГНКС ТОВ ТД "Сан Ойл", "Мотор Січ" м. Волочиськ
A3: Красилівське ЛВУМГ | G3: Маршрут № 11
A4: Вимірювальна хіміко-аналітична лабораторія
A5: Свідоцтво № 27"Ч"-17 чинно до 10.02.2020 р. | K5: по газопроводу КЗУ -1, ДК, ДКр | V5: за період з | X5: 2017-07-01 | Z5: по | AA5: 2017-07-31
A7: Число місяця | B7: Компонентний склад, % мол. | N7: Фізико-хімічні показники газу обчислені на основі компонентного складу, 101,325 кПа | X7: Температура точки роси за вологою (Р = 3.92 МПа), °С | Y7: Температура точки роси за вуглеводнями, °С | Z7: Вміст сірководню, г/м3 | AA7: Вміст меркаптанової сірки, г/м3 | AB7: Вміст механічних домішок, г/м3
N8: Густина абсолютна, кг/м3,при 20 °С, | O8: Температура вимірювання/згоряння при 20/25°С
B9: метан, С1 | C9: етан, С2 | D9: пропан, С3 | E9: ізо-бутан, і-С4 | F9: н-бутан, н-С4 | G9: нео-пентан, нео-С5 | H9: ізо-пентан, і-С5 | I9: н-пентан, н-С5 | J9: гексани та вищі, С6+ | K9: кисень, О2 | L9: азот, N2 | M9: діоксид вуглецю, CО2 | O9: Теплота згоряння нижча | R9: Теплота згоряння вища | U9: Число Воббе вище
O10: ккал/м³ | P10: МДж/м³ | Q10: кВт⋅год/м³ | R10: ккал/м³ | S10: МДж/м³ | T10: кВт⋅год/м³ | U10: ккал/м³ | V10: МДж/м³ | W10: кВт⋅год/м³
A11: 1 | O11: =P11*238.8459 -> 8249.761271 | P11: 34.5401 | Q11: =P11/3.6 -> 9.594472222 | R11: =S11*238.8459 -> 9136.596097 | S11: 38.2531 | T11: =S11/3.6 -> 10.62586111 | W11: =V11/3.6 -> 0 | AC11: =SUM(B11:M11)+$K$42+$N$42 -> 0
A12: 2 | O12: 8249.761271 | P12: 34.5401 | Q12: =P12/3.6 -> 9.594472222 | R12: 9136.596097 | S12: 38.2531 | T12: =S12/3.6 -> 10.62586111 | W12: =V12/3.6 -> 0 | AC12: 0
A13: 3 | B13: 89.8478 | C13: 4.8252 | D13: 1.1517 | E13: 0.1243 | F13: 0.1999 | G13: 0.0044 | H13: 0.0514 | I13: 0.0477 | J13: 0.1179 | K13: 0.0066 | L13: 1.7039 | M13: 1.9293 | N13: 0.7526 | O13: 8260.557105 | P13: 34.5853 | Q13: =P13/3.6 -> 9.607027778 | R13: 9148.6817 | S13: 38.3037 | T13: =S13/3.6 -> 10.63991667 | U13: 11574 | V13: 48.4558 | W13: =V13/3.6 -> 13.45994444 | X13: -1.6 | Y13: -1 | AC13: 100.0101 | AD13: =IF(AC13=100,"ОК"," ") -> 
A14: 4 | O14: 8260.557105 | P14: 34.5853 | Q14: 9.607027778 | R14: 9148.6817 | S14: 38.3037 | T14: 10.63991667 | W14: =V14/3.6 -> 0 | AC14: 0 | AD14: =IF(AC14=100,"ОК"," ") -> 
A15: 5 | O15: 8260.557105 | P15: 34.5853 | Q15: 9.607027778 | R15: 9148.6817 | S15: 38.3037 | T15: 10.63991667 | W15: 0 | AC15: 0
A16: 6 | O16: 8260.557105 | P16: 34.5853 | Q16: 9.607027778 | R16: 9148.6817 | S16: 38.3037 | T16: 10.63991667 | W16: =V16/3.6 -> 0 | AC16: 0
A17: 7 | O17: 8260.557105 | P17: 34.5853 | Q17: 9.607027778 | R17: 9148.6817 | S17: 38.3037 | T17: 10.63991667 | W17: =V17/3.6 -> 0 | AC17: 0
A18: 8 | O18: 8260.557105 | P18: 34.5853 | Q18: 9.607027778 | R18: 9148.6817 | S18: 38.3037 | T18: 10.63991667 | W18: =V18/3.6 -> 0 | AC18: 0
A19: 9 | O19: 8260.557105 | P19: 34.5853 | Q19: 9.607027778 | R19: 9148.6817 | S19: 38.3037 | T19: 10.63991667 | W19: =V19/3.6 -> 0 | AC19: 0
A20: 10 | B20: 89.5801 | C20: 4.9932 | D20: 1.1627 | E20: 0.125 | F20: 0.2054 | G20: 0.0044 | H20: 0.0538 | I20: 0.0487 | J20: 0.0822 | K20: 0.0066 | L20: 1.7501 | M20: 1.988 | N20: 0.7539 | O20: 8255.660764 | P20: 34.5648 | Q20: 9.601333333 | R20: 9143.11659 | S20: 38.2804 | T20: 10.63344444 | U20: 11557 | V20: 48.3868 | W20: =V20/3.6 -> 13.44077778 | X20: -3.5 | Y20: -2.7 | AC20: 100.0002
A21: 11 | O21: 8255.660764 | P21: 34.5648 | Q21: 9.601333333 | R21: 9143.11659 | S21: 38.2804 | T21: 10.63344444 | W21: =V21/3.6 -> 0 | AB21: 0.0008 | AC21: 0
A22: 12 | O22: 8255.660764 | P22: 34.5648 | Q22: 9.601333333 | R22: 9143.11659 | S22: 38.2804 | T22: 10.63344444 | W22: 0 | Z22: 0.0002 | AA22: 0.0006 | AC22: 0
A23: 13 | O23: 8255.660764 | P23: 34.5648 | Q23: 9.601333333 | R23: 9143.11659 | S23: 38.2804 | T23: 10.63344444 | W23: =V23/3.6 -> 0 | AC23: 0
A24: 14 | O24: 8255.660764 | P24: 34.5648 | Q24: 9.601333333 | R24: 9143.11659 | S24: 38.2804 | T24: 10.63344444 | W24: =V24/3.6 -> 0 | AC24: 0
A25: 15 | O25: 8255.660764 | P25: 34.5648 | Q25: 9.601333333 | R25: 9143.11659 | S25: 38.2804 | T25: 10.63344444 | W25: 0 | AC25: 0
A26: 16 | O26: 8255.660764 | P26: 34.5648 | Q26: 9.601333333 | R26: 9143.11659 | S26: 38.2804 | T26: 10.63344444 | W26: =V26/3.6 -> 0 | AC26: 0
A27: 17 | B27: 89.6535 | C27: 4.9447 | D27: 1.1382 | E27: 0.1238 | F27: 0.2027 | G27: 0.0044 | H27: 0.0523 | I27: 0.0467 | J27: 0.0842 | K27: 0.0067 | L27: 1.7598 | M27: 1.9831 | N27: 0.7532 | O27: 8248.232657 | P27: 34.5337 | Q27: 9.592694444 | R27: 9135.139137 | S27: 38.247 | T27: 10.62416667 | U27: 11552 | V27: 48.3661 | W27: =V27/3.6 -> 13.43502778 | X27: -4.1 | Y27: -3.2 | AC27: 100.0001
A28: 18 | O28: 8248.232657 | P28: 34.5337 | Q28: 9.592694444 | R28: 9135.139137 | S28: 38.247 | T28: 10.62416667 | V28: 0 | W28: 0 | AC28: 0
A29: 19 | O29: 8248.232657 | P29: 34.5337 | Q29: 9.592694444 | R29: 9135.139137 | S29: 38.247 | T29: 10.62416667 | W29: 0 | AC29: 0
A30: 20 | O30: 8248.232657 | P30: 34.5337 | Q30: 9.592694444 | R30: 9135.139137 | S30: 38.247 | T30: 10.62416667 | W30: =V30/3.6 -> 0 | AB30: 0.0008 | AC30: 0 | AD30: =IF(AC30=100,"ОК"," ") -> 
A31: 21 | O31: 8248.232657 | P31: 34.5337 | Q31: 9.592694444 | R31: 9135.139137 | S31: 38.247 | T31: 10.62416667 | W31: =V31/3.6 -> 0 | AC31: 0
A32: 22 | O32: 8248.232657 | P32: 34.5337 | Q32: 9.592694444 | R32: 9135.139137 | S32: 38.247 | T32: 10.62416667 | W32: 0 | AC32: 0
A33: 23 | O33: 8248.232657 | P33: 34.5337 | Q33: 9.592694444 | R33: 9135.139137 | S33: 38.247 | T33: 10.62416667 | W33: 0 | AC33: 0 | AD33: =IF(AC33=100,"ОК"," ") -> 
A34: 24 | B34: 89.5034 | C34: 4.9855 | D34: 1.2317 | E34: 0.1305 | F34: 0.2144 | G34: 0.0044 | H34: 0.0552 | I34: 0.0495 | J34: 0.0882 | K34: 0.0071 | L34: 1.746 | M34: 1.9841 | N34: 0.755 | O34: 8269.442173 | P34: 34.6225 | Q34: 9.617361111 | R34: 9157.901152 | S34: 38.3423 | T34: 10.65063889 | U34: 11568 | V34: 48.4268 | W34: 13.45188889 | X34: -3.6 | Y34: -2.3 | AC34: 100 | AD34: ОК
A35: 25 | O35: 8269.442173 | P35: 34.6225 | Q35: 9.617361111 | R35: 9157.901152 | S35: 38.3423 | T35: 10.65063889 | W35: 0 | AC35: 0
A36: 26 | O36: 8269.442173 | P36: 34.6225 | Q36: 9.617361111 | R36: 9157.901152 | S36: 38.3423 | T36: =S36/3.6 -> 10.65063889 | W36: 0 | AC36: 0
A37: 27 | O37: 8269.442173 | P37: 34.6225 | Q37: 9.617361111 | R37: 9157.901152 | S37: 38.3423 | T37: 10.65063889 | W37: =V37/3.6 -> 0 | AC37: 0
A38: 28 | O38: 8269.442173 | P38: 34.6225 | Q38: 9.617361111 | R38: 9157.901152 | S38: 38.3423 | T38: 10.65063889 | W38: =V38/3.6 -> 0 | Z38: 0.0002 | AA38: 0.0006 | AC38: 0
A39: 29 | O39: 8269.442173 | P39: 34.6225 | Q39: =P39/3.6 -> 9.617361111 | R39: 9157.901152 | S39: 38.3423 | T39: =S39/3.6 -> 10.65063889 | W39: 0 | AC39: 0
A40: 30 | O40: 8269.442173 | P40: 34.6225 | Q40: =P40/3.6 -> 9.617361111 | R40: 9157.901152 | S40: 38.3423 | T40: =S40/3.6 -> 10.65063889 | W40: 0 | AC40: 0
A41: 31 | B41: 89.5948 | C41: 4.9481 | D41: 1.2054 | E41: 0.1307 | F41: 0.2157 | G41: 0.0044 | H41: 0.0547 | I41: 0.049 | J41: 0.0922 | K41: 0.0071 | L41: 1.7841 | M41: 1.9137 | N41: 0.754 | O41: 8267.698598 | P41: 34.6152 | Q41: =P41/3.6 -> 9.615333333 | R41: 9156.133692 | S41: 38.3349 | T41: =S41/3.6 -> 10.64858333 | U41: 11572 | V41: 48.4508 | W41: 13.45855556 | X41: -4.4 | Y41: -3.1 | AC41: 99.9999
A42: Вміст одоранта при одоризації становить 16 г на 1 000 м³ газу | O42: =SUMPRODUCT(O11:O41,' розрахунок11,7'!AQ7:AQ37)/' розрахунок11,7'!AQ38 -> 8258.23504 | P42: =SUMPRODUCT(P11:P41,' розрахунок11,7'!AQ7:AQ37)/' розрахунок11,7'!AQ38 -> 34.57557798 | Q42: =SUMPRODUCT(Q11:Q41,' розрахунок11,7'!AQ7:AQ37)/' розрахунок11,7'!AQ38 -> 9.604327216 | R42: =ROUND(SUMPRODUCT(R11:R41,' розрахунок11,7'!AQ7:AQ37)/' розрахунок11,7'!AQ38,F5410) -> 9146 | S42: =SUMPRODUCT(S11:S41,' розрахунок11,7'!AQ7:AQ37)/' розрахунок11,7'!AQ38 -> 38.29219802 | T42: =SUMPRODUCT(T11:T41,' розрахунок11,7'!AQ7:AQ37)/' розрахунок11,7'!AQ38 -> 10.63672167
H43: Середньозважене значення теплоти згоряння:
B46: В.о.начальника управління Красилівського ЛВУМГ Семенюк П.В.
C47: Підрозділу підприємства, якому підпорядкована лабораторія | O47: прізвище | R47: підпис | V47: дата
B48: Завідувач лабораторією Пілецька С.А.
C49: Лабораторія, де здійснювалось вимірювання газу | O49: прізвище | R49: підпис | V49: дата
B50: Начальник служби метрології Мягкий С.В.
C51: Підрозділу, відповідального за облік газу за маршрутом | O51: прізвище | R51: підпис | V51: дата

Sheet розрахунок11,7
A2: Додаток до Паспорту фізико-хімічних показників природного газу по маршруту № 11
A4: Число місяця | B4: Теплота згоряння вища, МДж/м3 | C4: Хмельницька область | AQ4: Загальний обсяг газу, м3
C5: Обсяг газу переданого за добу, м3
C6: ГРС Красилів (місто) | D6: ГРС Красилів (цукр. завод) | E6: АГНКС ПП АвтоГаз Красилів | F6: ГРС Печеськи | G6: ГРС Закриниччя | H6: ГРС Чепелівка | I6: ГРС Чернелівка | J6: ГРС Заслучне | K6: ГРС Яворівці | L6: ГРС Пашутенці | M6: ГРС Митинці | N6: ГРС Хмельницький -1(Лісові Грінівці | O6: АГНКС-1 Хмельницький | P6: ГРС Везденьки | Q6: ГРС Черепова | R6: ГРС Грузевиця | S6: ГРС Хмельницький-2(Шаровечка) | T6: ГРС Малиничі | U6: АГНКС ТОВ ТД " Сан Ойл" | V6: ГРС Хмельницький3(Нижні Вовківці) | W6: ГРС Скарженці | X6: ГРС Сутківці | Y6: ГРС Глушківці | Z6: ГРС Мицівці | AA6: ГРС Дунаївці | AB6: ГРС Маків | AC6: ГРС Кам.Подільська №1 (місто) | AD6: ГРС Кам.Подільська №1 (цем. з-д) | AE6: ГРС Кам.Подільська №2 (ТЕЦ) | AF6: ГРС Шмирки | AG6: ГРС Купіль | AH6: ГРС Базалія | AI6: ГРС Теофіполь | AJ6: ГРС Заруддя | AK6: ГРС Ямпіль | AL6: ГРС Білогір'я | AM6: ГРС Денисівка | AN6: ГРС Гарнишівка | AO6: ГРС Волочиськ | AP6: машзавод "Мотор Січ"
A7: 1 | B7: 38.2531 | C7: 9221 | D7: 0 | E7: 482 | F7: 2160 | G7: 488 | H7: 839 | I7: 486 | J7: 1202 | K7: 501 | L7: 1880 | M7: 493 | N7: 157006 | O7: 40 | P7: 573 | Q7: 1733 | R7: 3679 | S7: 0 | T7: 3374 | U7: 952 | V7: 0 | W7: 2801 | X7: 6674 | Y7: 1127 | Z7: 3812 | AA7: 13517 | AB7: 3849 | AC7: 29096 | AD7: 37162 | AE7: 0 | AF7: 1269 | AG7: 1415 | AH7: 2694 | AI7: 6445 | AJ7: 2009 | AK7: 1452 | AL7: 2687 | AM7: 1133 | AN7: 4448 | AO7: 13150 | AP7: 0 | AQ7: =SUM(C7:AP7) -> 319849
A8: 2 | B8: 38.2531 | C8: 9497 | D8: 0 | E8: 572 | F8: 2177 | G8: 481 | H8: 729 | I8: 454 | J8: 1141 | K8: 449 | L8: 1755 | M8: 457 | N8: 161771 | O8: 243 | P8: 524 | Q8: 1770 | R8: 3656 | S8: 0 | T8: 3361 | U8: 545 | V8: 0 | W8: 2942 | X8: 6514 | Y8: 1012 | Z8: 3468 | AA8: 11866 | AB8: 2739 | AC8: 30680 | AD8: 25767 | AE8: 0 | AF8: 1086 | AG8: 1343 | AH8: 2398 | AI8: 5919 | AJ8: 1844 | AK8: 1573 | AL8: 2942 | AM8: 1150 | AN8: 3891 | AO8: 13765 | AP8: 1400 | AQ8: 311881
A9: 3 | B9: 38.3037 | C9: 9312 | D9: 0 | E9: 811 | F9: 2121 | G9: 447 | H9: 746 | I9: 464 | J9: 1119 | K9: 477 | L9: 1708 | M9: 431 | N9: 168212 | O9: 465 | P9: 532 | Q9: 1807 | R9: 3543 | S9: 0 | T9: 3332 | U9: 1342 | V9: 0 | W9: 2522 | X9: 6079 | Y9: 994 | Z9: 3403 | AA9: 13349 | AB9: 3624 | AC9: 31948 | AD9: 17760 | AE9: 0 | AF9: 989 | AG9: 1641 | AH9: 4976 | AI9: 6332 | AJ9: 1941 | AK9: 4189 | AL9: 2774 | AM9: 1121 | AN9: 4518 | AO9: 13743 | AP9: 5364 | AQ9: 324136
A10: 4 | B10: 38.3037 | C10: 9503 | D10: 0 | E10: 781 | F10: 2159 | G10: 476 | H10: 714 | I10: 465 | J10: 1074 | K10: 486 | L10: 1648 | M10: 432 | N10: 163102 | O10: 497 | P10: 539 | Q10: 1792 | R10: 3808 | S10: 0 | T10: 3386 | U10: 1228 | V10: 0 | W10: 2698 | X10: 5820 | Y10: 893 | Z10: 3456 | AA10: 13318 | AB10: 3861 | AC10: 29202 | AD10: 14391 | AE10: 0 | AF10: 1007 | AG10: 394 | AH10: 5286 | AI10: 6241 | AJ10: 1838 | AK10: 3858 | AL10: 2853 | AM10: 1106 | AN10: 4043 | AO10: 13649 | AP10: 4913 | AQ10: 310917
A11: 5 | B11: 38.3037 | C11: 9644 | D11: 0 | E11: 726 | F11: 2198 | G11: 476 | H11: 706 | I11: 463 | J11: 1114 | K11: 473 | L11: 1703 | M11: 448 | N11: 159328 | O11: 346 | P11: 644 | Q11: 1864 | R11: 3712 | S11: 0 | T11: 3229 | U11: 1287 | V11: 0 | W11: 2671 | X11: 5796 | Y11: 901 | Z11: 3349 | AA11: 12793 | AB11: 3754 | AC11: 28836 | AD11: 17469 | AE11: 0 | AF11: 1067 | AG11: 1793 | AH11: 4619 | AI11: 6572 | AJ11: 1876 | AK11: 2307 | AL11: 2829 | AM11: 1082 | AN11: 3883 | AO11: 13363 | AP11: 4777 | AQ11: 308098
A12: 6 | B12: 38.3037 | C12: 10400 | D12: 0 | E12: 903 | F12: 2083 | G12: 505 | H12: 763 | I12: 469 | J12: 1134 | K12: 483 | L12: 1802 | M12: 445 | N12: 165604 | O12: 428 | P12: 631 | Q12: 1861 | R12: 3712 | S12: 0 | T12: 3408 | U12: 1155 | V12: 0 | W12: 2648 | X12: 6022 | Y12: 949 | Z12: 3288 | AA12: 13069 | AB12: 3504 | AC12: 29846 | AD12: 36855 | AE12: 0 | AF12: 1090 | AG12: 1098 | AH12: 4759 | AI12: 6497 | AJ12: 1997 | AK12: 4290 | AL12: 2907 | AM12: 1133 | AN12: 4163 | AO12: 13618 | AP12: 5553 | AQ12: 339072
A13: 7 | B13: 38.3037 | C13: 10571 | D13: 0 | E13: 753 | F13: 1995 | G13: 398 | H13: 630 | I13: 390 | J13: 1019 | K13: 407 | L13: 1679 | M13: 419 | N13: 150297 | O13: 333 | P13: 606 | Q13: 1703 | R13: 3436 | S13: 0 | T13: 3177 | U13: 1327 | V13: 0 | W13: 2667 | X13: 5694 | Y13: 729 | Z13: 2976 | AA13: 12036 | AB13: 3420 | AC13: 29132 | AD13: 13631 | AE13: 0 | AF13: 838 | AG13: 1351 | AH13: 4295 | AI13: 6156 | AJ13: 1711 | AK13: 3720 | AL13: 2631 | AM13: 1022 | AN13: 3507 | AO13: 12762 | AP13: 4536 | AQ13: 291954
A14: 8 | B14: 38.3037 | C14: 10884 | D14: 0 | E14: 598 | F14: 2330 | G14: 505 | H14: 756 | I14: 489 | J14: 1232 | K14: 512 | L14: 1958 | M14: 502 | N14: 150980 | O14: 166 | P14: 727 | Q14: 1904 | R14: 3783 | S14: 0 | T14: 3674 | U14: 1308 | V14: 0 | W14: 2831 | X14: 6313 | Y14: 933 | Z14: 3548 | AA14: 12532 | AB14: 3721 | AC14: 28356 | AD14: 12436 | AE14: 0 | AF14: 1082 | AG14: 1617 | AH14: 3882 | AI14: 7235 | AJ14: 2000 | AK14: 1519 | AL14: 3019 | AM14: 1174 | AN14: 3837 | AO14: 13584 | AP14: 200 | AQ14: 292127
A15: 9 | B15: 38.3037 | C15: 9423 | D15: 0 | E15: 482 | F15: 2026 | G15: 493 | H15: 722 | I15: 480 | J15: 1129 | K15: 489 | L15: 1866 | M15: 464 | N15: 153825 | O15: 283 | P15: 679 | Q15: 1798 | R15: 3702 | S15: 0 | T15: 3408 | U15: 518 | V15: 0 | W15: 2656 | X15: 5881 | Y15: 838 | Z15: 3045 | AA15: 12412 | AB15: 2673 | AC15: 28640 | AD15: 14148 | AE15: 0 | AF15: 1105 | AG15: 1111 | AH15: 2407 | AI15: 6303 | AJ15: 1826 | AK15: 2229 | AL15: 2987 | AM15: 1103 | AN15: 3352 | AO15: 13335 | AP15: 1155 | AQ15: 288993
A16: 10 | B16: 38.2804 | C16: 9402 | D16: 0 | E16: 756 | F16: 1949 | G16: 435 | H16: 735 | I16: 428 | J16: 1049 | K16: 463 | L16: 1621 | M16: 413 | N16: 162530 | O16: 475 | P16: 509 | Q16: 1739 | R16: 3621 | S16: 0 | T16: 3015 | U16: 1021 | V16: 0 | W16: 2544 | X16: 5196 | Y16: 802 | Z16: 4081 | AA16: 13932 | AB16: 3136 | AC16: 27973 | AD16: 26888 | AE16: 0 | AF16: 530 | AG16: 1283 | AH16: 3362 | AI16: 6562 | AJ16: 1679 | AK16: 2684 | AL16: 2781 | AM16: 951 | AN16: 3005 | AO16: 12533 | AP16: 5709 | AQ16: 315792
A17: 11 | B17: 38.2804 | C17: 9899 | D17: 0 | E17: 719 | F17: 1906 | G17: 439 | H17: 760 | I17: 500 | J17: 1033 | K17: 464 | L17: 1549 | M17: 413 | N17: 154937 | O17: 429 | P17: 468 | Q17: 1683 | R17: 3236 | S17: 0 | T17: 3043 | U17: 992 | V17: 0 | W17: 2454 | X17: 5706 | Y17: 769 | Z17: 4258 | AA17: 13126 | AB17: 3087 | AC17: 3564 | AD17: 3527 | AE17: 25394 | AF17: 147 | AG17: 1255 | AH17: 4360 | AI17: 6137 | AJ17: 1716 | AK17: 4723 | AL17: 2737 | AM17: 1085 | AN17: 3080 | AO17: 15374 | AP17: 4785 | AQ17: 289754
A18: 12 | B18: 38.2804 | C18: 9013 | D18: 0 | E18: 779 | F18: 1914 | G18: 451 | H18: 659 | I18: 379 | J18: 933 | K18: 410 | L18: 1531 | M18: 396 | N18: 153941 | O18: 276 | P18: 431 | Q18: 1509 | R18: 3093 | S18: 0 | T18: 2793 | U18: 1174 | V18: 0 | W18: 2338 | X18: 5604 | Y18: 707 | Z18: 3659 | AA18: 12074 | AB18: 2695 | AC18: 10243 | AD18: 35506 | AE18: 21040 | AF18: 870 | AG18: 1204 | AH18: 4319 | AI18: 6059 | AJ18: 1530 | AK18: 4447 | AL18: 2447 | AM18: 945 | AN18: 2961 | AO18: 12879 | AP18: 4816 | AQ18: 316025
A19: 13 | B19: 38.2804 | C19: 10515 | D19: 0 | E19: 985 | F19: 1996 | G19: 435 | H19: 708 | I19: 435 | J19: 1038 | K19: 441 | L19: 1893 | M19: 413 | N19: 157736 | O19: 590 | P19: 447 | Q19: 1688 | R19: 3397 | S19: 0 | T19: 3092 | U19: 1500 | V19: 0 | W19: 2524 | X19: 6262 | Y19: 837 | Z19: 4244 | AA19: 14637 | AB19: 3062 | AC19: 28980 | AD19: 56102 | AE19: 0 | AF19: 636 | AG19: 1356 | AH19: 4070 | AI19: 6039 | AJ19: 1658 | AK19: 4514 | AL19: 2643 | AM19: 1126 | AN19: 3437 | AO19: 12793 | AP19: 4682 | AQ19: 346911
A20: 14 | B20: 38.2804 | C20: 10213 | D20: 0 | E20: 1027 | F20: 2102 | G20: 477 | H20: 694 | I20: 466 | J20: 1087 | K20: 461 | L20: 1740 | M20: 439 | N20: 156923 | O20: 536 | P20: 552 | Q20: 1647 | R20: 3524 | S20: 0 | T20: 3164 | U20: 1761 | V20: 0 | W20: 2538 | X20: 6531 | Y20: 858 | Z20: 5772 | AA20: 15312 | AB20: 3415 | AC20: 29772 | AD20: 52842 | AE20: 0 | AF20: 969 | AG20: 1353 | AH20: 4587 | AI20: 6337 | AJ20: 1876 | AK20: 4546 | AL20: 2683 | AM20: 1079 | AN20: 3404 | AO20: 13281 | AP20: 4906 | AQ20: 348874
A21: 15 | B21: 38.2804 | C21: 10296 | D21: 0 | E21: 642 | F21: 2215 | G21: 468 | H21: 779 | I21: 490 | J21: 1156 | K21: 492 | L21: 1808 | M21: 489 | N21: 153451 | O21: 224 | P21: 610 | Q21: 1761 | R21: 3712 | S21: 0 | T21: 3474 | U21: 925 | V21: 0 | W21: 2742 | X21: 7116 | Y21: 825 | Z21: 9000 | AA21: 17244 | AB21: 3795 | AC21: 30687 | AD21: 53009 | AE21: 0 | AF21: 1135 | AG21: 1402 | AH21: 4564 | AI21: 6923 | AJ21: 2291 | AK21: 2020 | AL21: 3001 | AM21: 1181 | AN21: 3286 | AO21: 14693 | AP21: 2286 | AQ21: 350192
A22: 16 | B22: 38.2804 | C22: 9430 | D22: 0 | E22: 738 | F22: 2047 | G22: 474 | H22: 709 | I22: 468 | J22: 1116 | K22: 455 | L22: 1756 | M22: 485 | N22: 163767 | O22: 180 | P22: 638 | Q22: 1729 | R22: 3546 | S22: 0 | T22: 3208 | U22: 927 | V22: 0 | W22: 2844 | X22: 6139 | Y22: 753 | Z22: 8404 | AA22: 16409 | AB22: 2413 | AC22: 30980 | AD22: 56564 | AE22: 0 | AF22: 1066 | AG22: 1349 | AH22: 2527 | AI22: 6484 | AJ22: 1900 | AK22: 2290 | AL22: 2868 | AM22: 1148 | AN22: 3154 | AO22: 15591 | AP22: 1132 | AQ22: 355688
A23: 17 | B23: 38.247 | C23: 9135 | D23: 0 | E23: 740 | F23: 2064 | G23: 423 | H23: 669 | I23: 418 | J23: 1019 | K23: 455 | L23: 1606 | M23: 418 | N23: 181964 | O23: 889 | P23: 524 | Q23: 1655 | R23: 3398 | S23: 0 | T23: 2888 | U23: 1136 | V23: 0 | W23: 2620 | X23: 6714 | Y23: 796 | Z23: 7444 | AA23: 17490 | AB23: 2943 | AC23: 31853 | AD23: 51589 | AE23: 0 | AF23: 954 | AG23: 1286 | AH23: 4900 | AI23: 6331 | AJ23: 1882 | AK23: 4446 | AL23: 4863 | AM23: 1067 | AN23: 2991 | AO23: 15032 | AP23: 4799 | AQ23: 379401
A24: 18 | B24: 38.247 | C24: 9429 | D24: 0 | E24: 983 | F24: 1851 | G24: 398 | H24: 629 | I24: 413 | J24: 999 | K24: 416 | L24: 1457 | M24: 419 | N24: 174922 | O24: 272 | P24: 480 | Q24: 1539 | R24: 3590 | S24: 0 | T24: 2888 | U24: 1098 | V24: 0 | W24: 2614 | X24: 7147 | Y24: 737 | Z24: 6904 | AA24: 14068 | AB24: 2853 | AC24: 31101 | AD24: 45190 | AE24: 0 | AF24: 925 | AG24: 1419 | AH24: 4312 | AI24: 6111 | AJ24: 1896 | AK24: 4332 | AL24: 5893 | AM24: 1028 | AN24: 3410 | AO24: 14218 | AP24: 4965 | AQ24: 360906
A25: 19 | B25: 38.247 | C25: 9307 | D25: 0 | E25: 790 | F25: 1884 | G25: 407 | H25: 626 | I25: 389 | J25: 962 | K25: 410 | L25: 1435 | M25: 385 | N25: 172549 | O25: 426 | P25: 455 | Q25: 1565 | R25: 3473 | S25: 0 | T25: 2804 | U25: 1019 | V25: 0 | W25: 2586 | X25: 6046 | Y25: 686 | Z25: 5828 | AA25: 13744 | AB25: 2681 | AC25: 28879 | AD25: 20231 | AE25: 0 | AF25: 907 | AG25: 1253 | AH25: 4406 | AI25: 6405 | AJ25: 1531 | AK25: 4017 | AL25: 6410 | AM25: 1024 | AN25: 3404 | AO25: 14502 | AP25: 5082 | AQ25: 328508
A26: 20 | B26: 38.247 | C26: 9284 | D26: 0 | E26: 765 | F26: 2033 | G26: 431 | H26: 691 | I26: 417 | J26: 980 | K26: 425 | L26: 1382 | M26: 414 | N26: 171947 | O26: 650 | P26: 498 | Q26: 1548 | R26: 3105 | S26: 0 | T26: 2595 | U26: 1275 | V26: 0 | W26: 2464 | X26: 6001 | Y26: 606 | Z26: 3976 | AA26: 13667 | AB26: 2414 | AC26: 29858 | AD26: 15759 | AE26: 0 | AF26: 917 | AG26: 1236 | AH26: 3916 | AI26: 5651 | AJ26: 1140 | AK26: 4250 | AL26: 6215 | AM26: 911 | AN26: 2837 | AO26: 12253 | AP26: 4146 | AQ26: 316657
A27: 21 | B27: 38.247 | C27: 9005 | D27: 0 | E27: 754 | F27: 5691 | G27: 1109 | H27: 605 | I27: 373 | J27: 967 | K27: 403 | L27: 1382 | M27: 383 | N27: 158620 | O27: 488 | P27: 531 | Q27: 1441 | R27: 3131 | S27: 0 | T27: 2750 | U27: 1323 | V27: 0 | W27: 2405 | X27: 5507 | Y27: 739 | Z27: 4710 | AA27: 14155 | AB27: 2829 | AC27: 28503 | AD27: 14543 | AE27: 0 | AF27: 862 | AG27: 1124 | AH27: 4620 | AI27: 6201 | AJ27: 1359 | AK27: 4333 | AL27: 3973 | AM27: 1820 | AN27: 2805 | AO27: 13308 | AP27: 3398 | AQ27: 306150
A28: 22 | B28: 38.247 | C28: 15319 | D28: 0 | E28: 509 | F28: 5231 | G28: 2253 | H28: 732 | I28: 450 | J28: 1088 | K28: 464 | L28: 1709 | M28: 449 | N28: 156053 | O28: 122 | P28: 567 | Q28: 1589 | R28: 3587 | S28: 0 | T28: 3170 | U28: 953 | V28: 0 | W28: 2629 | X28: 5312 | Y28: 812 | Z28: 6879 | AA28: 12335 | AB28: 2979 | AC28: 28546 | AD28: 17385 | AE28: 0 | AF28: 999 | AG28: 1311 | AH28: 4750 | AI28: 6912 | AJ28: 1960 | AK28: 3322 | AL28: 6795 | AM28: 1858 | AN28: 3653 | AO28: 13184 | AP28: 576 | AQ28: 316442
A29: 23 | B29: 38.247 | C29: 12691 | D29: 0 | E29: 608 | F29: 6454 | G29: 2194 | H29: 656 | I29: 379 | J29: 1010 | K29: 393 | L29: 1563 | M29: 374 | N29: 143662 | O29: 183 | P29: 499 | Q29: 1793 | R29: 3422 | S29: 0 | T29: 2940 | U29: 749 | V29: 0 | W29: 2432 | X29: 4964 | Y29: 685 | Z29: 6846 | AA29: 10824 | AB29: 1816 | AC29: 25852 | AD29: 10385 | AE29: 0 | AF29: 910 | AG29: 1223 | AH29: 2083 | AI29: 6150 | AJ29: 1060 | AK29: 6355 | AL29: 5326 | AM29: 1765 | AN29: 4126 | AO29: 14076 | AP29: 1228 | AQ29: 287676
A30: 24 | B30: 38.3423 | C30: 13708 | D30: 0 | E30: 870 | F30: 3539 | G30: 3824 | H30: 626 | I30: 341 | J30: 934 | K30: 416 | L30: 1426 | M30: 354 | N30: 153548 | O30: 349 | P30: 407 | Q30: 1817 | R30: 3105 | S30: 0 | T30: 2690 | U30: 1126 | V30: 0 | W30: 2288 | X30: 5432 | Y30: 687 | Z30: 5900 | AA30: 13477 | AB30: 2616 | AC30: 26351 | AD30: 16311 | AE30: 0 | AF30: 830 | AG30: 1135 | AH30: 3542 | AI30: 5780 | AJ30: 1681 | AK30: 5909 | AL30: 7260 | AM30: 1738 | AN30: 3766 | AO30: 14485 | AP30: 5051 | AQ30: 313319
A31: 25 | B31: 38.3423 | C31: 16696 | D31: 0 | E31: 724 | F31: 1750 | G31: 2341 | H31: 628 | I31: 369 | J31: 911 | K31: 401 | L31: 1319 | M31: 387 | N31: 153273 | O31: 637 | P31: 401 | Q31: 2178 | R31: 2972 | S31: 0 | T31: 2598 | U31: 1343 | V31: 0 | W31: 2192 | X31: 5035 | Y31: 640 | Z31: 6549 | AA31: 5150 | AB31: 2535 | AC31: 24984 | AD31: 22388 | AE31: 0 | AF31: 858 | AG31: 1106 | AH31: 3283 | AI31: 5279 | AJ31: 1119 | AK31: 6976 | AL31: 6072 | AM31: 1750 | AN31: 3924 | AO31: 14924 | AP31: 4817 | AQ31: 308509
A32: 26 | B32: 38.3423 | C32: 11435 | D32: 0 | E32: 978 | F32: 1904 | G32: 435 | H32: 661 | I32: 389 | J32: 979 | K32: 412 | L32: 1519 | M32: 417 | N32: 159671 | O32: 609 | P32: 472 | Q32: 2700 | R32: 3252 | S32: 0 | T32: 2793 | U32: 917 | V32: 0 | W32: 2180 | X32: 5245 | Y32: 725 | Z32: 5199 | AA32: 2111 | AB32: 2423 | AC32: 25935 | AD32: 25150 | AE32: 0 | AF32: 895 | AG32: 1208 | AH32: 4508 | AI32: 7961 | AJ32: 2287 | AK32: 5905 | AL32: 6640 | AM32: 1724 | AN32: 4671 | AO32: 15857 | AP32: 5088 | AQ32: 315255
A33: 27 | B33: 38.3423 | C33: 10061 | D33: 0 | E33: 755 | F33: 2767 | G33: 443 | H33: 650 | I33: 415 | J33: 1028 | K33: 431 | L33: 1472 | M33: 417 | N33: 158280 | O33: 209 | P33: 491 | Q33: 2598 | R33: 3285 | S33: 0 | T33: 2820 | U33: 1090 | V33: 0 | W33: 2722 | X33: 4777 | Y33: 731 | Z33: 4394 | AA33: 5093 | AB33: 2478 | AC33: 24407 | AD33: 41741 | AE33: 0 | AF33: 907 | AG33: 1210 | AH33: 3991 | AI33: 8179 | AJ33: 2528 | AK33: 5175 | AL33: 2967 | AM33: 1782 | AN33: 4364 | AO33: 13068 | AP33: 5080 | AQ33: 322806
A34: 28 | B34: 38.3423 | C34: 8618 | D34: 0 | E34: 836 | F34: 2426 | G34: 410 | H34: 626 | I34: 394 | J34: 983 | K34: 391 | L34: 1446 | M34: 372 | N34: 156277 | O34: 601 | P34: 433 | Q34: 2312 | R34: 3293 | S34: 0 | T34: 2901 | U34: 1105 | V34: 0 | W34: 2611 | X34: 4031 | Y34: 656 | Z34: 4005 | AA34: 12699 | AB34: 2554 | AC34: 26027 | AD34: 49591 | AE34: 0 | AF34: 954 | AG34: 1185 | AH34: 3325 | AI34: 12627 | AJ34: 1838 | AK34: 5932 | AL34: 2928 | AM34: 1564 | AN34: 5182 | AO34: 12800 | AP34: 3948 | AQ34: 337881
A35: 29 | B35: 38.3423 | C35: 9389 | D35: 0 | E35: 599 | F35: 3248 | G35: 470 | H35: 738 | I35: 452 | J35: 1106 | K35: 481 | L35: 1704 | M35: 493 | N35: 160161 | O35: 292 | P35: 574 | Q35: 2350 | R35: 3627 | S35: 0 | T35: 3911 | U35: 1016 | V35: 0 | W35: 2871 | X35: 5307 | Y35: 831 | Z35: 4914 | AA35: 15289 | AB35: 2990 | AC35: 26439 | AD35: 54964 | AE35: 0 | AF35: 1091 | AG35: 1325 | AH35: 4649 | AI35: 11898 | AJ35: 2655 | AK35: 1761 | AL35: 3810 | AM35: 1577 | AN35: 6935 | AO35: 15118 | AP35: 1022 | AQ35: 356057
A36: 30 | B36: 38.3423 | C36: 11563 | D36: 0 | E36: 606 | F36: 3614 | G36: 1739 | H36: 673 | I36: 346 | J36: 1053 | K36: 401 | L36: 1596 | M36: 452 | N36: 167096 | O36: 152 | P36: 487 | Q36: 1966 | R36: 3335 | S36: 0 | T36: 3836 | U36: 573 | V36: 0 | W36: 2663 | X36: 4954 | Y36: 676 | Z36: 4803 | AA36: 38138 | AB36: 1853 | AC36: 26021 | AD36: 45169 | AE36: 0 | AF36: 966 | AG36: 1250 | AH36: 2196 | AI36: 12300 | AJ36: 2944 | AK36: 5974 | AL36: 4473 | AM36: 1185 | AN36: 8347 | AO36: 14873 | AP36: 1546 | AQ36: 379819
A37: 31 | B37: 38.3349 | C37: 9727 | D37: 0 | E37: 1039 | F37: 2865 | G37: 595 | H37: 614 | I37: 374 | J37: 944 | K37: 412 | L37: 1408 | M37: 385 | N37: 158285 | O37: 614 | P37: 396 | Q37: 1666 | R37: 2992 | S37: 0 | T37: 3318 | U37: 720 | V37: 0 | W37: 2509 | X37: 4595 | Y37: 664 | Z37: 5341 | AA37: 12903 | AB37: 2664 | AC37: 26031 | AD37: 44471 | AE37: 0 | AF37: 902 | AG37: 1157 | AH37: 3976 | AI37: 8568 | AJ37: 2915 | AK37: 7703 | AL37: 4132 | AM37: 1200 | AN37: 5502 | AO37: 4132 | AP37: 5915 | AQ37: 331634
A38: Загальний обсяг газу, м3 | C38: =SUM(C7:C37) -> 322590 | D38: =SUM(D7:D37) -> 0 | E38: =SUM(E7:E37) -> 23310 | F38: =SUM(F7:F37) -> 80699 | G38: 24920 | H38: =SUM(H7:H37) -> 21473 | I38: 13245 | J38: =SUM(J7:J37) -> 32539 | K38: 13774 | L38: 50321 | M38: 13258 | N38: 4959718 | O38: 12004 | P38: 16325 | Q38: 56705 | R38: 106727 | S38: 0 | T38: 97040 | U38: 33405 | V38: 0 | W38: 80206 | X38: 178414 | Y38: 24598 | Z38: 153455 | AA38: 418769 | AB38: 91376 | AC38: 838722 | AD38: 948924 | AE38: 46434 | AF38: 28763 | AG38: 39393 | AH38: 121562 | AI38: 218594 | AJ38: 58487 | AK38: 126751 | AL38: 122546 | AM38: 39532 | AN38: 123886 | AO38: 419943 | AP38: 112875 | AQ38: =SUM(AQ7:AQ37) -> 10071283
A39: Енергія, МДж | C39: =SUMPRODUCT($B7:$B37,C7:C37) -> 12353083.94 | D39: =SUMPRODUCT(A7:A37,D7:D37) -> 0 | E39: =SUMPRODUCT(B7:B37,E7:E37) -> 892622.0361 | F39: =SUMPRODUCT(B7:B37,F7:F37) -> 3089924.696 | G39: =SUMPRODUCT(B7:B37,G7:G37) -> 954387.5286 | H39: =SUMPRODUCT(B7:B37,H7:H37) -> 822234.0045 | I39: =SUMPRODUCT(B7:B37,I7:I37) -> 507166.3238 | J39: =SUMPRODUCT(B7:B37,J7:J37) -> 1245973.943 | K39: =SUMPRODUCT(B7:B37,K7:K37) -> 527430.756 | L39: =SUMPRODUCT(B7:B37,L7:L37) -> 1926870.59 | M39: =SUMPRODUCT(B7:B37,M7:M37) -> 507673.868 | N39: =SUMPRODUCT(B7:B37,N7:N37) -> 189915676.8 | O39: =SUMPRODUCT(B7:B37,O7:O37) -> 459677.4792 | P39: =SUMPRODUCT($B7:$B37,P7:P37) -> 625104.1052 | Q39: =SUMPRODUCT($B7:$B37,Q7:Q37) -> 2171595.601 | R39: 4086737.597 | S39: 0 | T39: 3715941.902 | U39: 1279136.931 | V39: 0 | W39: 3071225.337 | X39: 6831379.542 | Y39: 941881.5146 | Z39: 5875739.923 | AA39: 16035216.93 | AB39: 3498909.036 | AC39: 32115518.1 | AD39: 36338804.07 | AE39: 1777512.094 | AF39: 1101397.44 | AG39: 1508402.856 | AH39: 4654833.797 | AI39: 8371552.973 | AJ39: 2239836.803 | AK39: 4854223.605 | AL39: 4692442.841 | AM39: 1513868.522 | AN39: 4744640.249 | AO39: 16080301.99 | AP39: 4322637.19 | AQ39: =SUMPRODUCT(B7:B37,AQ7:AQ37) -> 385651563
A40: Теплота згоряння (середньозважене значення за місяць), МДж/м³ | C40: =C39/C38 -> 38.29344971 | D40: =IF(D38=0,"0",D39/D38) -> 0 | E40: =E39/E38 -> 38.29352364 | F40: =F39/F38 -> 38.28950415 | G40: =G39/G38 -> 38.29805492 | H40: =H39/H38 -> 38.29152911 | I40: 38.29115317 | J40: 38.29170972 | K40: 38.2917639 | L40: 38.29157986 | M40: 38.29188927 | N40: 38.29162804 | O40: 38.29369204 | P40: 38.29121625 | Q40: 38.29636894 | R40: 38.29150634 | S40: =IF(S38=0,"0",S39/S38) -> 0 | T40: 38.29288852 | U40: 38.29178061 | V40: =IF(V38=0,"0",V39/V38) -> 0 | W40: 38.29171555 | X40: 38.28948144 | Y40: 38.29097953 | Z40: 38.28966096 | AA40: 38.29131796 | AB40: 38.2913351 | AC40: 38.29101669 | AD40: 38.29474655 | AE40: =IF(AE38=0,"0",AE39/AE38) -> 38.2804 | AF40: 38.29216147 | AG40: 38.29113944 | AH40: 38.2918494 | AI40: 38.29726787 | AJ40: 38.29631889 | AK40: 38.29731998 | AL40: 38.29127708 | AM40: 38.29476176 | AN40: 38.29843767 | AO40: 38.29163003 | AP40: 38.29578906 | AQ40: =AQ39/AQ38 -> 38.29219802
A41: Теплота згоряння (середньозважене значення за місяць), ккал/м³ | C41: =C40*238.8459 -> 9146.233461 | D41: =D40*238.8459 -> 0 | E41: =E40*238.8459 -> 9146.251118 | F41: =F40*238.8459 -> 9145.29108 | G41: 9147.333396 | H41: 9145.774732 | I41: 9145.684942 | J41: 9145.817871 | K41: 9145.830812 | L41: 9145.786855 | M41: 9145.860756 | N41: 9145.798362 | O41: 9146.291339 | P41: 9145.700006 | Q41: 9146.930706 | R41: 9145.769293 | S41: 0 | T41: 9146.099422 | U41: 9145.834802 | V41: 0 | W41: 9145.819262 | X41: 9145.285655 | Y41: 9145.643469 | Z41: 9145.328533 | AA41: 9145.7243 | AB41: 9145.728394 | AC41: 9145.652343 | AD41: 9146.543204 | AE41: 9143.11659 | AF41: 9145.92577 | AG41: 9145.681662 | AH41: 9145.851233 | AI41: 9147.145413 | AJ41: 9146.918751 | AK41: 9147.157858 | AL41: 9145.714536 | AM41: 9146.546838 | AN41: 9147.424814 | AO41: 9145.798837 | AP41: 9146.792204 | AQ41: =AQ40*238.8459 -> 9145.934499
A42: Теплота згоряння (середньозважене значення за місяць), кВт*год./м³ | C42: =C40/3.6 -> 10.63706936 | D42: 0 | E42: =E40/3.6 -> 10.6370899 | F42: =F40/3.6 -> 10.63597338 | G42: 10.63834859 | H42: 10.63653586 | I42: 10.63643144 | J42: 10.63658603 | K42: 10.63660108 | L42: 10.63654996 | M42: 10.63663591 | N42: 10.63656335 | O42: 10.63713668 | P42: 10.63644896 | Q42: 10.63788026 | R42: 10.63652954 | S42: 0 | T42: 10.63691348 | U42: 10.63660572 | V42: 0 | W42: 10.63658765 | X42: 10.63596707 | Y42: 10.6363832 | Z42: 10.63601693 | AA42: 10.63647721 | AB42: 10.63648197 | AC42: 10.63639353 | AD42: 10.6374296 | AE42: 10.63344444 | AF42: 10.63671152 | AG42: 10.63642762 | AH42: 10.63662483 | AI42: 10.63812996 | AJ42: 10.63786636 | AK42: 10.63814444 | AL42: 10.63646585 | AM42: 10.63743382 | AN42: 10.63845491 | AO42: 10.6365639 | AP42: 10.63771918 | AQ42: =AQ40/3.6 -> 10.63672167

Sheet додаток 11,7
A2: Додаток до Паспорту фізико-хімічних показників природного газу №11
A4: Область | B4: ГРС, прямий споживач | C4: Cередньозважене значення вищої теплоти згоряння
C5: МДж/м³ | D5: ккал/м³ | E5: кВт*год./м³
A6: Хмельницька область | B6: ГРС Красилів(місто) | C6: 38.29 | D6: 9146 | E6: 10.64
B7: ГРС Красилів (цукр. завод) | C7: 0 | D7: 0 | E7: 0
B8: АГНКС ПП АвтоГаз Красилів | C8: 38.29 | D8: 9146 | E8: 10.64
B9: ГРС Печеськи | C9: 38.29 | D9: 9145 | E9: 10.64
B10: ГРС Закриниччя | C10: 38.3 | D10: 9147 | E10: 10.64
B11: ГРС Чепелівка | C11: 38.29 | D11: 9146 | E11: 10.64
B12: ГРС Чернелівка | C12: 38.29 | D12: 9146 | E12: 10.64
B13: ГРС Заслучне | C13: 38.29 | D13: 9146 | E13: 10.64
B14: ГРС Яворівці | C14: 38.29 | D14: 9146 | E14: 10.64
B15: ГРС Пашутенці | C15: 38.29 | D15: 9146 | E15: 10.64
B16: ГРС Митенці | C16: 38.29 | D16: 9146 | E16: 10.64
B17: ГРС Хмельницький-1(Лісові Гринівці) | C17: 38.29 | D17: 9146 | E17: 10.64
B18: АГНКС-1 Хмельницький | C18: 38.29 | D18: 9146 | E18: 10.64
B19: ГРС Везденьки | C19: 38.29 | D19: 9146 | E19: 10.64
B20: ГРС Черепова | C20: 38.3 | D20: 9147 | E20: 10.64
B21: ГРС Грузевиця | C21: 38.29 | D21: 9146 | E21: 10.64
B22: ГРС Хмельницький-2(Шаровечка) | C22: 0 | D22: 0 | E22: 0
B23: ГРС Малиничі | C23: 38.29 | D23: 9146 | E23: 10.64
B24: АГНКС ТОВ ТД "Сан Ойл" | C24: 38.29 | D24: 9146 | E24: 10.64
B25: ГРС Хмельницький-3(Нижні Вовківці) | C25: 0 | D25: 0 | E25: 0
B26: ГРС Скарженці | C26: 38.29 | D26: 9146 | E26: 10.64
B27: ГРС Сутківці | C27: 38.29 | D27: 9145 | E27: 10.64
B28: ГРС Глушківці | C28: 38.29 | D28: 9146 | E28: 10.64
B29: ГРС Мицівці | C29: 38.29 | D29: 9145 | E29: 10.64
B30: ГРС Дунаївці | C30: 38.29 | D30: 9146 | E30: 10.64
B31: ГРС Маків | C31: 38.29 | D31: 9146 | E31: 10.64
B32: ГРС Кам'янець-Подільський-1(місто) | C32: 38.29 | D32: 9146 | E32: 10.64
B33: ГРС Кам'янець-Подільський-1(цем.з-д) | C33: 38.29 | D33: 9147 | E33: 10.64
B34: ГРС Кам'янець-Подільський-2(ТЕЦ) | C34: 38.28 | D34: 9143 | E34: 10.63
B35: ГРС Шмирки | C35: 38.29 | D35: 9146 | E35: 10.64
B36: ГРС Купіль | C36: 38.29 | D36: 9146 | E36: 10.64
B37: ГРС Базалія | C37: 38.29 | D37: 9146 | E37: 10.64
B38: ГРС Теофіполь | C38: 38.3 | D38: 9147 | E38: 10.64
B39: ГРС Заруддя | C39: 38.3 | D39: 9147 | E39: 10.64
B40: ГРС Ямпіль | C40: 38.3 | D40: 9147 | E40: 10.64
B41: ГРС Білогір'я | C41: 38.29 | D41: 9146 | E41: 10.64
B42: ГРС Денисівка | C42: 38.29 | D42: 9147 | E42: 10.64
B43: ГРС Гарнишівка | C43: 38.3 | D43: 9147 | E43: 10.64
B44: ГРС Волочиськ | C44: 38.29 | D44: 9146 | E44: 10.64
B45: "Мотор Січ" | C45: 38.3 | D45: 9147 | E45: 10.64
A46: Середньозважене значення вищої теплоти згоряння по маршруту № 11 | C46: 38.29 | D46: 9146 | E46: 10.64
A50: В.о.начальника управління Красилівського ЛВУМГ Семенюк П.В.
A51: Підрозділу підприємства, якому підпорядкована лабораторія | D51: прізвище | E51: підпис | F51: дата
A52: Завідувач лабораторією Пілецька С.А.
A53: Лабораторія, де здійснювалось вимірювання газу | D53: прізвище | E53: підпис | F53: дата
A54: Начальник служби метрології Мягкий С.В.
A55: Підрозділу, відповідального за облік газу за маршрутом | D55: прізвище | E55: підпис | F55: дата

Sheet variablesList (hidden)
A1: 3 | B1: x:\gaysin | C1: 10, 11, 24, 25, 127, 128, 132, 180, 207, 215 | D1: x:\
B2: x:\Illinci
B3: x:\Talne
